bitfinex-derivatives/quotes_ETHF0:USTF0_20210111
["timestamp","ask_amount","ask_price","bid_price","bid_amount"]
[1610387447998,23.3351311,995.59,993.7,68.5794]
[1610387448196,55.1061311,995.59,993.7,68.5794]
[1610387448391,4.00959,994.47,993.77,4.00959]
[1610387448590,6.03959,994.47,993.77,4.00959]
[1610387448785,2.03,994.47,993.77,4.00959]
[1610387448987,0.8963,994.47,993.77,4.00959]
[1610387449185,2.318,994.47,993.77,4.00959]
[1610387449388,0.5254,994.47,993.77,4.00959]
[1610387449586,23.3388691,995.51,993.77,4.00959]
[1610387449786,2.367,994.52,993.77,4.00959]
[1610387450186,23.3366059,995.57,993.78,2.0163]
[1610387450386,23.3368461,995.52,993.7,68.5794]
[1610387450686,23.3344992,995.56,993.7,68.5794]
[1610387451087,1.771,995.59,993.7,68.5794]
[1610387451487,1.771,995.59,993.7,70.6004]
[1610387451686,1.771,995.59,993.7,68.5794]
[1610387452387,23.3339343,995.57,994.83,4.00959]
[1610387452787,1.771,995.59,994.83,4.00959]
[1610387453186,23.3334006,995.74,994.83,4.00959]
[1610387453387,23.3304511,995.84,994.83,4.00959]
[1610387453587,23.3284058,995.89,994.84,2.0344]
[1610387453988,83.3446,996.88,994.84,2.0344]
[1610387453989,23.3271978,995.88,994.84,2.0344]
[1610387454387,23.3272399,995.89,995.49,4.00959]
[1610387454587,23.3274933,995.91,995.49,4.00959]
[1610387454787,23.3274933,995.91,994.84,2.0344]
[1610387454988,30.0,996.69,994.34,2.427]
[1610387454989,23.3295326,995.89,994.34,2.427]
[1610387455387,1.9902,996.86,994.34,2.427]
[1610387455388,23.3311251,995.85,994.34,2.427]
[1610387455588,23.3311933,995.84,994.34,2.427]
[1610387455888,23.3306451,995.91,994.34,2.427]
[1610387456288,23.3306451,995.91,995.81,4.00959]
[1610387456489,23.3306451,995.91,994.74,2.266]
[1610387456690,23.3281879,995.96,994.74,2.266]
[1610387456893,23.3262405,995.98,994.74,2.266]
[1610387457290,23.326313,996.01,994.74,2.266]
[1610387457688,23.3255281,996.06,994.74,2.266]
[1610387458292,4.00959,995.6,994.97,4.00959]
[1610387458696,2.465,995.65,994.97,4.00959]
[1610387458892,1.1968,995.65,994.97,4.00959]
[1610387459091,0.9966,995.65,994.97,4.00959]
[1610387459490,0.9966,995.65,994.98,2.0232]
[1610387459491,1.9952,995.64,994.98,2.0232]
[1610387459890,25.3573506,996.28,994.98,2.0232]
[1610387460091,2.0356,996.28,994.98,2.0232]
[1610387460292,4.00959,996.22,995.87,4.00959]
[1610387460492,2.193,996.22,995.88,2.0216]
[1610387460691,2.0356,996.28,995.88,2.0216]
[1610387460892,23.3191033,996.39,995.88,2.0216]
[1610387461093,23.3173812,996.52,995.88,2.0216]
[1610387461295,23.315891,996.54,995.88,2.0216]
[1610387461696,23.3152258,996.53,995.88,2.0216]
[1610387461897,24.8652258,996.53,995.88,2.0216]
[1610387462097,23.315828,996.44,995.4,2.0339]
[1610387462299,23.3191933,996.37,995.4,2.0339]
[1610387462497,4.00959,996.0,995.4,2.0339]
[1610387462698,1.9931,995.99,995.4,2.0339]
[1610387462897,1.9885,995.98,995.4,2.0339]
[1610387464402,4.00959,995.41,995.4,2.0339]
[1610387464600,6.03099,995.41,995.2,1.955]
[1610387465399,6.03099,995.41,993.88,76.4847]
[1610387465602,7.77799,995.41,993.88,76.4847]
[1610387465801,2.0067,995.4,993.88,76.4847]
[1610387466403,4.00959,994.36,993.84,4.00959]
[1610387466604,6.22859,994.36,993.84,4.00959]
[1610387466804,6.22859,994.36,993.09,2.011]
[1610387467213,6.22859,994.36,992.77,74.7071]
[1610387467808,2.219,994.36,992.5,2.035]
[1610387468010,30.0,994.26,992.5,2.035]
[1610387468408,4.00959,992.51,992.5,1.142]
[1610387468609,4.00959,992.51,991.53,4.00959]
[1610387468809,4.00959,992.51,991.38,2.0382]
[1610387469008,4.00959,992.51,991.3,0.2619774]
[1610387469208,4.00959,992.51,985.99,6.4336]
[1610387469209,4.00959,992.51,991.09,0.2623693]
[1610387469409,4.00959,992.51,990.81,0.2629642]
[1610387469610,4.00959,992.51,990.82,2.0102]
[1610387469811,4.00959,992.51,990.82,4.3602]
[1610387469812,65.3366,992.43,990.82,4.3602]
[1610387470009,67.1836,992.43,990.82,4.3602]
[1610387470409,67.1836,992.43,990.82,3.19429]
[1610387470608,67.1836,992.43,990.82,2.35]
[1610387471209,20.9466257,992.1,990.46,2.0009]
[1610387471412,52.4886257,992.1,990.46,2.0009]
[1610387471610,30.0,991.96,990.46,1.0139]
[1610387471810,1.542,992.1,989.74,76.5224]
[1610387471811,20.9486037,991.98,989.74,76.5224]
[1610387472010,20.9486037,991.98,989.89,2.002]
[1610387472213,20.9503911,992.0,989.88,1.547]
[1610387472612,20.9488974,992.04,989.88,1.547]
[1610387473211,20.9499904,992.08,989.88,1.547]
[1610387473411,20.9499904,992.08,989.89,2.0177]
[1610387473612,1.542,992.1,989.89,2.0177]
[1610387473613,20.950338,992.02,989.89,2.0177]
[1610387474011,20.9499078,992.0,989.89,2.0177]
[1610387474211,67.8682,991.78,989.89,2.0177]
[1610387474411,4.00959,990.1,989.89,2.0177]
[1610387475411,1.883,990.71,989.89,2.0177]
[1610387475611,2.06,990.41,989.82,4.00959]
[1610387476011,0.1321,990.41,989.82,4.00959]
[1610387476412,0.1321,990.41,990.4,4.00959]
[1610387476611,0.1321,990.41,989.53,2.393]
[1610387476811,1.883,990.71,989.53,2.393]
[1610387477611,1.883,990.71,989.54,2.038]
[1610387478412,4.00959,990.44,990.18,4.00959]
[1610387478612,4.00959,990.44,990.19,2.0086]
[1610387479012,1.883,990.71,989.79,1.938]
[1610387479413,20.469534,991.52,989.82,59.8639]
[1610387479613,4.591834,991.52,989.82,59.8639]
[1610387479814,23.4192416,992.23,989.82,59.8639]
[1610387480015,23.4192416,992.23,989.79,1.938]
[1610387480216,23.4100766,992.54,990.45,79.8127]
[1610387480414,23.4009727,992.97,992.53,4.00959]
[1610387480815,23.3919558,993.16,992.53,4.00959]
[1610387481015,12.1050558,993.16,992.53,4.00959]
[1610387481215,24.609688,993.9,992.53,4.00959]
[1610387481614,24.6048267,994.36,992.54,2.0017]
[1610387482016,2.0104,994.35,992.54,2.0017]
[1610387482215,4.4244,994.35,992.54,2.0017]
[1610387482415,4.00959,992.83,992.54,2.0017]
[1610387482815,2.0436,993.67,992.54,2.0017]
[1610387483016,2.0436,993.67,992.45,2.015]
[1610387483218,2.0436,993.67,992.2,71.8002]
[1610387483816,1.9986,994.25,992.2,71.8002]
[1610387484016,1.893,993.67,992.2,73.6112]
[1610387484617,2.414,994.35,992.2,73.6112]
[1610387484618,3.88199,994.2,993.66,4.00959]
[1610387485418,2.0063,994.19,993.66,4.00959]
[1610387485818,0.3056,994.19,993.67,1.9947]
[1610387486220,2.261,995.16,993.67,1.9947]
[1610387486617,4.00959,994.29,993.65,2.15]
[1610387488523,1.884,994.42,993.84,4.00959]
[1610387488721,1.884,994.42,993.85,1.9911]
[1610387488922,0.0278,994.47,993.85,3.5931]
[1610387490523,4.00959,993.92,993.85,3.5931]
[1610387491121,4.00959,993.92,993.65,2.15]
[1610387491321,4.00959,993.92,993.37,2.0187]
[1610387491522,4.00959,993.92,991.8,0.2654039]
[1610387491721,2.0166,993.91,991.8,0.2654039]
[1610387491922,1.757,993.97,991.68,0.2663717]
[1610387492124,1.757,993.97,992.98,63.338]
[1610387492323,0.0388,993.97,992.98,63.338]
[1610387492523,4.00959,995.35,993.96,4.00959]
[1610387492723,4.00959,995.35,993.96,6.26559]
[1610387493323,4.00959,995.35,993.96,2.256]
[1610387493724,4.00959,995.35,993.97,2.0251]
[1610387493923,4.00959,995.35,993.96,2.256]
[1610387494125,6.15959,995.35,993.96,2.256]
[1610387494527,4.00959,994.19,993.96,2.256]
[1610387494727,4.00959,994.19,993.96,1.7814]
[1610387495126,2.258,994.77,993.96,1.7814]
[1610387496629,2.0666,994.77,993.96,1.7814]
[1610387496828,2.15,995.35,993.96,1.7814]
[1610387497229,4.00959,994.73,994.15,4.00959]
[1610387497630,1.984,994.72,994.15,4.00959]
[1610387497832,1.7163,994.72,994.15,4.00959]
[1610387498031,4.00959,994.73,994.15,4.00959]
[1610387498234,1.568,994.72,994.15,4.00959]
[1610387498434,2.221,994.72,994.15,4.00959]
[1610387498632,2.061,994.72,994.16,2.0358]
[1610387499134,2.061,994.72,994.71,4.00959]
[1610387499533,1.995,996.28,994.71,5.68959]
[1610387500133,1.995,996.28,994.71,1.68]
[1610387500333,1.995,996.28,994.72,1.9979]
[1610387500534,9.0,996.27,994.71,1.68]
[1610387500735,30.0,996.25,994.47,2.476]
[1610387500935,30.0,996.25,992.95,78.8037]
[1610387500936,64.6182,995.4,992.95,78.8037]
[1610387501135,4.00959,993.58,993.57,1.2878]
[1610387501336,34.00959,993.58,992.11,0.2675878]
[1610387501536,4.00959,993.58,992.11,0.2675878]
[1610387501737,4.00959,993.58,991.77,2.0446]
[1610387501738,2.23,993.73,991.77,2.0446]
[1610387501937,2.23,993.73,991.77,2.028]
[1610387502741,30.0,993.63,991.77,2.028]
[1610387502941,30.0,993.52,991.77,2.028]
[1610387503142,4.00959,992.23,992.18,4.00959]
[1610387503342,5.64559,992.23,992.18,4.00959]
[1610387503741,5.19969,992.23,992.18,4.00959]
[1610387503941,0.65289,992.23,992.18,4.00959]
[1610387504142,0.02719,992.23,992.18,4.00959]
[1610387504943,0.02719,992.23,990.75,2.3086539]
[1610387505145,0.02719,992.23,992.19,4.00959]
[1610387505343,4.00959,992.74,992.19,4.00959]
[1610387505543,2.0107,993.09,992.19,4.00959]
[1610387505743,75.4996,993.46,992.19,4.00959]
[1610387506143,75.4996,993.46,992.2,2.0048]
[1610387506344,75.4996,993.46,991.7,1.679]
[1610387506744,30.0,993.36,991.7,1.679]
[1610387506943,1.9979,993.35,991.7,1.679]
[1610387507145,4.00959,991.71,991.48,1.565]
[1610387507545,4.00959,991.71,990.13,0.2731546]
[1610387507747,4.00959,991.71,989.98,57.7295]
[1610387508548,63.5352,991.53,989.76,0.2740304]
[1610387508746,93.5352,991.53,989.76,0.2740304]
[1610387508946,93.5352,991.53,989.36,1.370152]
[1610387508947,93.5352,991.53,989.47,0.2747542]
[1610387509146,4.00959,989.55,989.48,2.0195]
[1610387509346,4.00959,989.55,989.3,0.2754185]
[1610387509551,4.00959,989.55,989.03,0.2759318]
[1610387509748,2.0314,989.54,989.03,0.2759318]
[1610387509948,2.0314,989.54,988.79,0.2764185]
[1610387510150,84.5428,989.47,988.57,0.2778133]
[1610387510551,84.5428,989.47,988.17,1.3890665]
[1610387510552,2.0314,989.54,988.33,0.2788193]
[1610387510748,80.0076,988.68,988.33,2.3988193]
[1610387510952,30.0,989.44,988.09,0.2792258]
[1610387511152,76.4599,988.1,987.72,0.2806843]
[1610387511350,4.00959,988.1,987.72,0.2806843]
[1610387511550,4.00959,988.1,987.01,0.282244]
[1610387511551,76.0177,987.73,987.01,0.282244]
[1610387511750,1.787,987.73,986.49,0.2836588]
[1610387511950,69.3582,986.5,986.49,0.2836588]
[1610387512151,69.3582,986.5,985.68,2.0171]
[1610387512351,69.3582,986.5,984.79,3.4154494]
[1610387512352,2.238,986.5,984.95,1.7135333]
[1610387512551,75.4608,986.31,984.95,0.1954333]
[1610387512752,75.4608,986.31,984.44,2.2893548]
[1610387513151,75.4608,986.31,984.35,2.2913597]
[1610387513351,4.00959,986.0,984.35,2.2913597]
[1610387513552,60.1478,985.82,984.35,2.2913597]
[1610387513754,60.1478,985.82,984.52,2.2899237]
[1610387513950,60.1478,985.82,984.52,3.9759237]
[1610387514152,4.00959,986.0,984.52,1.686]
[1610387514951,23.5175979,987.74,984.52,1.686]
[1610387515160,23.517172,987.72,984.85,71.9024]
[1610387515350,23.517172,987.72,986.52,4.00959]
[1610387515552,1.9954,987.71,986.53,2.0522]
[1610387515752,23.508434,988.12,986.53,2.0522]
[1610387515951,23.508434,988.12,986.52,4.00959]
[1610387516151,25.5371755,988.15,986.52,4.00959]
[1610387516353,2.0241,988.15,986.52,4.00959]
[1610387516753,2.03,987.82,986.52,4.00959]
[1610387516952,1.92,988.38,986.52,4.00959]
[1610387517159,1.92,988.38,986.45,1.891]
[1610387517378,4.00959,986.78,986.45,1.891]
[1610387517754,4.00959,986.78,986.46,2.002]
[1610387517962,9.1801,986.76,985.24,2.0261]
[1610387518153,9.1801,986.76,986.46,2.359]
[1610387518354,9.1801,986.76,986.23,2.451]
[1610387518754,9.1801,986.76,986.23,0.6541]
[1610387518955,9.1801,986.76,984.85,2.062]
[1610387518956,1.9986,986.77,984.85,2.062]
[1610387519254,81.6183,986.64,985.37,4.00959]
[1610387519855,2.399,986.72,985.38,2.0131]
[1610387520054,2.399,986.72,985.38,4.4601]
[1610387520461,1.9486,986.72,985.38,4.4601]
[1610387520670,1.6589,987.28,985.38,4.4601]
[1610387520858,21.0303509,987.96,985.38,4.4601]
[1610387521060,1.7109,987.57,985.38,4.4601]
[1610387521261,0.5859,987.57,987.56,4.00959]
[1610387521457,21.0215603,988.55,987.56,4.00959]
[1610387521661,23.4939579,988.75,987.3,2.204]
[1610387521662,1.441,988.09,987.3,2.204]
[1610387521858,2.281,988.37,987.3,2.204]
[1610387522062,2.281,988.37,986.47,0.2831925]
[1610387522269,2.281,988.37,986.39,72.1594]
[1610387522662,2.0441,988.36,986.39,72.1594]
[1610387523062,2.281,988.37,986.39,72.1594]
[1610387523263,4.00959,988.3,987.62,4.00959]
[1610387523470,2.281,988.37,987.62,4.00959]
[1610387523864,0.4921,988.37,987.62,4.00959]
[1610387524067,25.9583879,990.12,987.62,4.00959]
[1610387524266,9.0,989.35,987.62,2.426]
[1610387524466,72.569,988.24,987.62,2.426]
[1610387524667,1.98347,988.12,986.47,0.2835881]
[1610387524868,1.98347,988.12,986.39,2.257]
[1610387524869,3.62547,988.12,986.39,2.257]
[1610387525069,3.62547,988.12,986.39,0.7766]
[1610387525469,1.642,988.12,986.39,0.7766]
[1610387525669,0.0042,988.12,986.39,0.7766]
[1610387525869,1.828,988.12,986.39,0.7766]
[1610387526069,1.828,988.12,986.46,0.2839411]
[1610387526271,2.449,989.63,986.88,0.2832975]
[1610387526470,2.449,989.63,986.88,2.5672975]
[1610387526672,2.449,989.63,987.03,0.2829793]
[1610387527070,2.449,989.63,987.07,0.2831234]
[1610387527270,4.00959,989.17,988.98,4.00959]
[1610387527470,2.242,990.07,988.99,2.0515]
[1610387527671,2.242,990.07,988.99,4.1765]
[1610387528672,76.5635,991.12,988.99,4.1765]
[1610387528872,1.9958,991.92,988.99,4.1765]
[1610387528873,25.9157326,991.62,988.99,4.1765]
[1610387529275,25.9155181,991.81,988.99,4.1765]
[1610387529472,25.9155181,991.81,991.02,4.00959]
[1610387529673,2.0144,991.8,991.02,4.00959]
[1610387529872,1.992,991.8,991.02,4.00959]
[1610387530273,1.656,992.31,991.02,4.00959]
[1610387530474,1.656,992.31,991.02,5.53559]
[1610387530874,1.9865,993.38,991.02,5.53559]
[1610387530875,25.886131,993.06,991.02,5.53559]
[1610387531276,25.8731219,993.18,991.02,1.526]
[1610387531476,25.8731219,993.18,992.68,4.00959]
[1610387531678,1.9865,993.38,992.68,4.00959]
[1610387532279,1.9865,993.38,992.05,1.747]
[1610387532480,11.6854,993.86,992.05,1.747]
[1610387532679,1.493,993.38,992.05,1.747]
[1610387532879,60.4779,992.96,991.91,2.0066]
[1610387533079,62.9139,992.96,991.04,0.9141]
[1610387533280,2.0099,992.95,991.02,0.4925]
[1610387534881,0.5313,992.95,991.02,0.4925]
[1610387535080,2.436,992.96,991.02,0.4925]
[1610387535480,2.436,992.96,990.56,0.2776977]
[1610387535680,2.436,992.96,990.48,0.277852]
[1610387536081,2.436,992.96,990.22,0.2782325]
[1610387536283,2.436,992.96,990.16,0.2781135]
[1610387536681,2.436,992.96,990.12,67.0924]
[1610387537482,4.00959,991.3,990.75,4.00959]
[1610387537684,4.00959,991.3,989.78,0.2788466]
[1610387538283,4.00959,991.3,989.49,0.2794073]
[1610387538483,4.00959,991.3,989.35,0.2797792]
[1610387538685,4.00959,991.3,989.36,2.032]
[1610387538884,11.3428,991.26,989.36,2.447]
[1610387539085,13.6288,991.26,989.36,2.447]
[1610387539486,4.00959,990.28,989.66,4.00959]
[1610387540085,4.00959,990.28,989.67,2.0226]
[1610387540286,4.00959,990.28,989.67,4.1726]
[1610387540685,68.3075,989.92,989.67,4.1726]
[1610387540886,68.3075,989.92,989.67,2.15]
[1610387541087,9.0,989.91,989.67,2.15]
[1610387541286,11.327,989.91,988.43,1.9995]
[1610387541486,34.00959,989.68,988.43,1.9995]
[1610387541689,72.7462,989.16,988.43,1.9995]
[1610387542489,72.7462,989.16,987.0,0.5628626]
[1610387542692,9.0,989.15,986.79,0.5631036]
[1610387542893,11.0079,989.15,986.79,0.5631036]
[1610387543096,11.0079,989.15,986.71,0.2185976]
[1610387543495,2.0079,989.15,986.69,2.023]
[1610387543707,70.322,988.74,986.69,2.023]
[1610387543904,72.38,988.74,986.69,2.023]
[1610387544505,72.38,988.74,986.69,2.8626526]
[1610387544908,1.98347,988.59,987.03,0.8354206]
[1610387545100,78.4577,988.32,987.04,1.9976]
[1610387545309,4.00959,987.05,987.04,1.4348]
[1610387545909,4.00959,987.05,986.21,0.8370112]
[1610387546301,0.09789,987.05,986.1,0.8373113]
[1610387546499,61.0338,987.4,986.01,0.8370807]
[1610387546500,51.9478,987.4,986.01,0.8370807]
[1610387546700,27.8332,987.4,986.01,2.8990807]
[1610387546904,1.539,988.54,986.08,0.8342549]
[1610387547101,1.539,988.54,986.11,67.1532]
[1610387547300,23.478239,989.34,986.46,0.8314817]
[1610387547500,23.478239,989.34,986.46,3.1864817]
[1610387547700,23.4783512,989.46,986.57,0.8302054]
[1610387548099,1.98347,989.25,986.46,2.355]
[1610387548300,23.477823,989.21,986.46,2.355]
[1610387548499,23.477823,989.21,986.47,2.0261]
[1610387548699,1.977,989.25,986.65,0.8279054]
[1610387548899,2.0258,989.51,986.72,56.6387]
[1610387549101,2.0258,989.51,987.01,0.8248706]
[1610387549299,83.821,990.78,987.15,0.8224693]
[1610387549300,23.4630493,990.09,987.15,0.8224693]
[1610387549499,4.00959,988.96,987.15,0.8224693]
[1610387549701,4.00959,988.96,987.16,71.9664]
[1610387550405,2.0014,989.31,987.16,71.9664]
[1610387550603,2.0014,989.31,987.23,0.8177508]
[1610387550802,2.0014,989.31,987.23,3.1987508]
[1610387551003,2.0014,989.31,987.24,0.8155306]
[1610387551402,2.0014,989.31,989.3,4.00959]
[1610387551603,1.9972,989.6,989.3,4.00959]
[1610387551802,2.052,989.74,988.97,1.693]
[1610387552202,1.39151,989.4,988.97,1.693]
[1610387552403,1.39151,989.4,988.97,1.244]
[1610387552604,1.39151,989.4,987.14,0.8144768]
[1610387552803,66.123,989.27,986.94,0.2720119]
[1610387553002,66.123,989.27,986.64,1.0880478]
[1610387553003,68.024,989.27,986.64,0.2730535]
[1610387553203,2.0069,989.26,987.24,2.0316]
[1610387553404,4.00959,987.75,987.74,4.00959]
[1610387553603,1.684,988.34,987.74,2.0029]
[1610387553803,1.684,988.34,987.74,1.5206]
[1610387554005,1.684,988.34,987.46,1.738]
[1610387555208,1.495,988.65,987.46,1.738]
[1610387555403,23.4704738,989.57,987.46,1.738]
[1610387555805,23.467329,989.72,988.95,4.00959]
[1610387556005,4.00959,989.8,988.95,4.00959]
[1610387556405,2.0471,989.6,988.95,4.00959]
[1610387556605,4.00959,989.8,988.95,4.00959]
[1610387556805,2.0506,989.89,988.95,4.00959]
[1610387557007,2.0506,989.89,988.96,2.0431]
[1610387557708,4.00959,989.2,988.85,2.138]
[1610387557906,1.9949,989.19,988.85,2.138]
[1610387558105,1.9949,989.19,987.51,0.2706291]
[1610387558305,1.9949,989.19,987.33,0.2710303]
[1610387558706,1.9949,989.19,987.32,70.8837]
[1610387558707,4.00959,989.2,987.32,70.8837]
[1610387559619,4.00959,989.2,988.16,2.206]
[1610387559807,4.00959,988.5,988.16,2.206]
[1610387560209,4.00959,988.5,988.16,1.6858]
[1610387560408,4.00959,988.5,988.16,1.0374]
[1610387560608,4.00959,988.5,987.32,70.8837]
[1610387561210,0.14489,988.5,987.32,70.8837]
[1610387561410,1.837,989.04,987.32,70.8837]
[1610387561627,1.693,989.29,987.32,72.9937]
[1610387561824,1.693,989.29,988.41,4.00959]
[1610387562012,23.4687458,989.72,988.41,6.34559]
[1610387562415,23.4660313,990.0,988.41,6.34559]
[1610387562813,23.4583405,990.19,988.41,6.34559]
[1610387563212,23.4523573,990.34,988.41,6.34559]
[1610387563413,74.8008,990.99,988.41,6.34559]
[1610387563414,23.4473538,990.62,988.41,6.34559]
[1610387563813,25.4669277,990.76,990.09,4.00959]
[1610387564013,2.0234,990.76,990.09,4.00959]
[1610387564813,2.0234,990.76,989.46,1.497]
[1610387565014,3.9864,990.76,989.46,1.4437]
[1610387565213,3.9864,990.76,989.2,2.121]
[1610387565416,23.4411677,990.75,989.2,2.121]
[1610387565614,23.4429957,990.65,989.2,2.121]
[1610387565813,4.00959,989.73,988.91,4.00959]
[1610387566418,3.64499,989.73,988.91,4.00959]
[1610387566614,2.259,989.89,988.91,4.00959]
[1610387566820,2.259,989.89,988.91,6.22059]
[1610387567014,1.8894,989.89,988.91,6.22059]
[1610387567214,0.7256,990.18,988.91,6.22059]
[1610387567419,0.0921,990.47,988.91,6.22059]
[1610387567815,0.0921,990.47,990.39,4.00959]
[1610387568017,6.03239,991.34,990.39,4.00959]
[1610387568615,23.4292973,991.28,989.58,1.9]
[1610387569015,23.4296461,991.27,989.58,1.9]
[1610387569215,23.4296461,991.27,989.59,2.0304]
[1610387569416,23.43064,991.24,989.58,1.9]
[1610387569620,23.4356149,991.22,989.01,1.9997]
[1610387569816,23.4356149,991.22,989.21,4.00959]
[1610387570021,23.4431054,990.83,989.21,4.00959]
[1610387570417,23.4430836,990.64,989.21,4.00959]
[1610387570618,23.4446451,990.59,988.42,57.0103]
[1610387570817,53.4446451,990.59,988.91,1.6921]
[1610387571015,23.4497234,990.53,988.91,1.6921]
[1610387571215,30.0,990.43,988.91,1.5593]
[1610387571419,30.0,990.32,988.72,2.0489]
[1610387571618,23.4537474,990.08,987.97,63.82]
[1610387571818,2.0004,990.07,987.95,2.0006]
[1610387572019,4.00959,988.61,988.48,4.00959]
[1610387572424,2.312,989.78,988.48,4.00959]
[1610387572622,2.312,989.78,988.48,5.63159]
[1610387573223,2.312,989.78,988.49,2.0047]
[1610387574123,32.312,989.78,988.49,2.0047]
[1610387574323,9.0,989.77,987.88,1.0892]
[1610387574522,10.2458,989.77,988.12,2.264]
[1610387574723,20.9934618,989.62,987.93,1.667]
[1610387575122,20.995616,989.51,987.93,1.667]
[1610387575322,2.0438,989.5,987.93,1.667]
[1610387576121,4.00959,988.51,987.93,1.667]
[1610387576522,2.349,988.63,987.93,1.667]
[1610387576923,1.4938,988.7,987.93,1.667]
[1610387577324,0.7778,988.7,987.93,1.667]
[1610387577724,0.7778,988.7,987.32,0.9705]
[1610387577923,2.8198,988.7,987.08,0.2711604]
[1610387578125,4.00959,987.24,987.09,4.00959]
[1610387578526,4.00959,987.24,986.31,0.2727684]
[1610387578726,4.00959,987.24,986.22,0.2729556]
[1610387579126,4.00959,987.24,985.87,0.2734413]
[1610387579327,1.9956,987.23,985.88,2.0194]
[1610387579526,2.182,987.31,985.88,2.0194]
[1610387579728,2.182,987.31,985.88,2.376]
[1610387580127,2.182,987.31,985.9,0.2744301]
[1610387580327,4.00959,987.28,987.27,4.00959]
[1610387580528,2.182,987.31,985.88,2.376]
[1610387580529,21.0174586,988.35,986.11,2.0041]
[1610387580729,2.016,987.28,986.11,1.743]
[1610387580928,2.0506,987.27,986.11,1.743]
[1610387581327,1.4231,987.28,986.11,1.743]
[1610387582329,4.00959,986.63,986.11,1.743]
[1610387582529,1.575,986.84,986.11,1.743]
[1610387583130,1.575,986.84,986.12,2.0429]
[1610387583832,1.575,986.84,986.12,1.8752]
[1610387584030,31.575,986.84,985.53,2.0187]
[1610387584230,4.00959,985.54,984.46,76.1221888]
[1610387584429,4.00959,985.54,984.35,1.4032815]
[1610387584830,4.00959,985.54,984.3,1.4034831]
[1610387585231,4.00959,985.54,984.18,1.4043967]
[1610387585431,4.00959,985.54,984.17,1.4072776]
[1610387585631,76.6189,985.95,984.17,1.4072776]
[1610387585832,76.4979,985.95,984.17,1.633]
[1610387586032,1.286,986.43,984.17,1.633]
[1610387586235,3.94099,986.4,984.25,1.4095463]
[1610387586637,3.94099,986.4,984.17,3.0441494]
[1610387586833,3.94099,986.4,984.17,1.633]
[1610387586834,2.0092,986.39,984.17,1.633]
[1610387587434,2.0092,986.39,984.18,2.0205]
[1610387587633,0.0135,986.39,984.18,2.0205]
[1610387587834,0.9706,986.84,984.36,1.4061028]
[1610387588035,18.4305399,986.97,984.36,1.4061028]
[1610387588234,4.00959,987.37,986.96,4.00959]
[1610387588435,0.7226,987.28,986.96,4.00959]
[1610387588635,0.37399,987.37,986.96,4.00959]
[1610387588835,13.6131009,987.25,985.69,1.934]
[1610387589034,15.8141009,987.25,985.69,1.934]
[1610387589235,13.6155504,987.15,984.91,1.4007148]
[1610387589435,13.618725,986.89,984.66,1.4038312]
[1610387589636,15.872725,986.89,984.66,1.4038312]
[1610387589837,13.6184202,986.74,984.54,66.4148]
[1610387590236,2.254,986.89,986.45,4.00959]
[1610387590237,4.00959,986.49,986.45,4.00959]
[1610387590436,6.32859,986.49,986.45,4.00959]
[1610387590636,6.32859,986.49,984.54,66.4148]
[1610387590637,6.32859,986.49,984.95,2.0583]
[1610387590836,6.32859,986.49,984.54,66.4148]
[1610387590837,6.32859,986.49,984.54,1.4060977]